[Event "Early-Titled-Tuesday-Blitz-July-09-2024"]
[Site "Chess.com"]
[Date "2024.07.09"]
[Round "1"]
[White "Andreikka"]
[Black "Silent-Killer100"]
[Result "1-0"]
[WhiteElo "3005"]
[BlackElo "2525"]
[TimeControl "180+1"]
[EndTime "8:06:39 PDT"]
[Termination "Andreikka won by resignation"]

1. e4 {[%clk 0:02:56.9]} 1... c5 {[%clk 0:02:59.3]} 2. g3 {[%clk 0:02:55.7]}
2... Nc6 {[%clk 0:02:58.4]} 3. Bg2 {[%clk 0:02:56.1]} 3... g6 {[%clk 0:02:58.9]}
4. Nc3 {[%clk 0:02:56.1]} 4... Bg7 {[%clk 0:02:59.4]} 5. d3 {[%clk 0:02:56]}
5... e6 {[%clk 0:02:59.4]} 6. h4 {[%clk 0:02:54.7]} 6... h5 {[%clk 0:02:58.7]}
7. Nf3 {[%clk 0:02:54.2]} 7... d5 {[%clk 0:02:56.6]} 8. O-O {[%clk 0:02:53.6]}
8... Nge7 {[%clk 0:02:56.3]} 9. Re1 {[%clk 0:02:53.1]} 9... O-O {[%clk
0:02:52.9]} 10. Bg5 {[%clk 0:02:52.9]} 10... d4 {[%clk 0:02:51.6]} 11. Nb1
{[%clk 0:02:52.8]} 11... Qb6 {[%clk 0:02:50.7]} 12. Bc1 {[%clk 0:02:47.9]} 12...
e5 {[%clk 0:02:47.4]} 13. Nbd2 {[%clk 0:02:48.6]} 13... Be6 {[%clk 0:02:46.7]}
14. Ng5 {[%clk 0:02:48.5]} 14... Bg4 {[%clk 0:02:46.5]} 15. Bf3 {[%clk
0:02:49.1]} 15... Bxf3 {[%clk 0:02:45.8]} 16. Qxf3 {[%clk 0:02:50]} 16... Nb4
{[%clk 0:02:43.2]} 17. Qd1 {[%clk 0:02:50]} 17... Qc7 {[%clk 0:02:37.7]} 18. a4
{[%clk 0:02:48.4]} 18... b6 {[%clk 0:02:10.5]} 19. Nc4 {[%clk 0:02:44.2]} 19...
Nbc6 {[%clk 0:02:09.1]} 20. Bd2 {[%clk 0:02:42]} 20... Qd7 {[%clk 0:02:09]} 21.
Kg2 {[%clk 0:02:39.5]} 21... f6 {[%clk 0:02:04.2]} 22. Nf3 {[%clk 0:02:39.6]}
22... Rab8 {[%clk 0:01:59.5]} 23. b3 {[%clk 0:02:34.8]} 23... a6 {[%clk
0:01:56.9]} 24. a5 {[%clk 0:02:35.1]} 24... b5 {[%clk 0:01:57.1]} 25. Nb6 {[%clk
0:02:35.5]} 25... Qe6 {[%clk 0:01:56.7]} 26. Qe2 {[%clk 0:02:34.6]} 26... Rb7
{[%clk 0:01:52.2]} 27. Bc1 {[%clk 0:02:28.3]} 27... f5 {[%clk 0:01:45.5]} 28.
Ng5 {[%clk 0:02:27.5]} 28... Qd6 {[%clk 0:01:44.9]} 29. exf5 {[%clk 0:02:24.8]}
29... Nxf5 {[%clk 0:01:44.6]} 30. Ne4 {[%clk 0:02:20.6]} 30... Qe7 {[%clk
0:01:43.9]} 31. Ba3 {[%clk 0:02:21]} 31... b4 {[%clk 0:01:40.1]} 32. Bc1 {[%clk
0:02:20.6]} 32... Nxa5 {[%clk 0:01:19]} 33. Nd5 {[%clk 0:02:17.5]} 33... Qd8
{[%clk 0:01:18.5]} 34. Bg5 {[%clk 0:02:11.9]} 34... Qxd5 {[%clk 0:01:17.6]} 35.
Rxa5 {[%clk 0:02:12.6]} 35... Rc7 {[%clk 0:01:13.8]} 36. Rxa6 {[%clk 0:02:11.6]}
36... Rc6 {[%clk 0:01:07]} 37. Ra7 {[%clk 0:02:06.2]} 37... Rf7 {[%clk
0:01:05.1]} 38. Rea1 {[%clk 0:02:05]} 38... Nd6 {[%clk 0:00:50.3]} 39. Rxf7
{[%clk 0:01:56.2]} 39... Nxf7 {[%clk 0:00:47.8]} 40. Qf3 {[%clk 0:01:55.5]}
40... Qe6 {[%clk 0:00:36.8]} 41. Ra8+ {[%clk 0:01:50.6]} 41... Rc8 {[%clk
0:00:34.7]} 42. Nxc5 {[%clk 0:01:47.7]} 42... e4 {[%clk 0:00:24.9]} 43. Rxc8+
{[%clk 0:01:24.8]} 43... Qxc8 {[%clk 0:00:25.8]} 44. Nxe4 {[%clk 0:01:23.9]}
44... Qxc2 {[%clk 0:00:24.7]} 45. Nf6+ {[%clk 0:01:23.8]} 45... Bxf6 {[%clk
0:00:21.3]} 46. Bxf6 {[%clk 0:01:24.7]} 46... Qxb3 {[%clk 0:00:20.4]} 47. Qa8+
{[%clk 0:01:24.7]} 47... Kh7 {[%clk 0:00:17.2]} 48. Qf8 {[%clk 0:01:25.2]} 48...
Qd5+ {[%clk 0:00:15.7]} 49. Kh2 {[%clk 0:01:25.7]} 1-0

[Event "Early-Titled-Tuesday-Blitz-July-09-2024"]
[Site "Chess.com"]
[Date "2024.07.09"]
[Round "1"]
[White "Barbix1"]
[Black "brm72"]
[Result "0-1"]
[WhiteElo "2350"]
[BlackElo "2667"]
[TimeControl "180+1"]
[EndTime "8:06:39 PDT"]
[Termination "brm72 won by resignation"]

1. d4 {[%clk 0:02:59.6]} 1... Nf6 {[%clk 0:02:59.5]} 2. c4 {[%clk 0:02:59.4]}
2... e6 {[%clk 0:02:59.1]} 3. Nf3 {[%clk 0:02:58.7]} 3... c5 {[%clk 0:02:58.8]}
4. d5 {[%clk 0:02:56.9]} 4... exd5 {[%clk 0:02:59.7]} 5. cxd5 {[%clk 0:02:56.7]}
5... g6 {[%clk 0:02:59.2]} 6. Nc3 {[%clk 0:02:57]} 6... d6 {[%clk 0:02:59.2]} 7.
Nd2 {[%clk 0:02:56.7]} 7... Nbd7 {[%clk 0:02:57]} 8. e4 {[%clk 0:02:55.7]} 8...
Bg7 {[%clk 0:02:55.8]} 9. Be2 {[%clk 0:02:55.2]} 9... O-O {[%clk 0:02:55.2]} 10.
O-O {[%clk 0:02:54.9]} 10... Re8 {[%clk 0:02:52.1]} 11. a4 {[%clk 0:02:49.2]}
11... a6 {[%clk 0:02:42.9]} 12. Ra3 {[%clk 0:02:43.5]} 12... Rb8 {[%clk
0:02:30.9]} 13. a5 {[%clk 0:02:19.7]} 13... h6 {[%clk 0:02:19.3]} 14. Qc2 {[%clk
0:02:15.4]} 14... g5 {[%clk 0:02:17]} 15. f4 {[%clk 0:01:50.4]} 15... gxf4
{[%clk 0:02:14]} 16. Nc4 {[%clk 0:01:39.7]} 16... Ne5 {[%clk 0:02:11.1]} 17.
Bxf4 {[%clk 0:01:37.9]} 17... Nxc4 {[%clk 0:02:09.1]} 18. Bxc4 {[%clk
0:01:38.8]} 18... Qe7 {[%clk 0:01:51.2]} 19. Bd3 {[%clk 0:01:10.8]} 19... Nd7
{[%clk 0:01:50.3]} 20. Ne2 {[%clk 0:00:43]} 20... Ne5 {[%clk 0:01:46.9]} 21. Ng3
{[%clk 0:00:42.9]} 21... Qh4 {[%clk 0:01:38.3]} 22. Qd2 {[%clk 0:00:27.9]} 22...
Bd7 {[%clk 0:01:17.6]} 23. Be2 {[%clk 0:00:20.6]} 23... b5 {[%clk 0:01:10.2]}
24. axb6 {[%clk 0:00:19.6]} 24... Rxb6 {[%clk 0:01:10.1]} 25. Rxa6 {[%clk
0:00:15.7]} 25... Rxb2 {[%clk 0:01:09.3]} 26. Qe3 {[%clk 0:00:04.5]} 26... Ng4
{[%clk 0:01:04.1]} 27. Bxg4 {[%clk 0:00:04.4]} 27... Qxg4 {[%clk 0:00:55.8]} 28.
Qf3 {[%clk 0:00:04]} 28... Qxf3 {[%clk 0:00:53.6]} 29. Rxf3 {[%clk 0:00:04.1]}
29... Bd4+ {[%clk 0:00:51.1]} 30. Kh1 {[%clk 0:00:03.8]} 30... Bb5 {[%clk
0:00:50.8]} 31. Rxd6 {[%clk 0:00:02.7]} 31... Rb1+ {[%clk 0:00:49.8]} 32. Nf1
{[%clk 0:00:01.8]} 32... Bxf1 {[%clk 0:00:48.6]} 33. h3 {[%clk 0:00:01.4]} 33...
Be2+ {[%clk 0:00:48.5]} 34. Kh2 {[%clk 0:00:01.9]} 34... Bxf3 {[%clk 0:00:48.6]}
35. gxf3 {[%clk 0:00:02.8]} 0-1

[Event "Early-Titled-Tuesday-Blitz-July-09-2024"]
[Site "Chess.com"]
[Date "2024.07.09"]
[Round "1"]
[White "nicolochessit"]
[Black "Mikhail_Golubev"]
[Result "0-1"]
[WhiteElo "2321"]
[BlackElo "2643"]
[TimeControl "180+1"]
[EndTime "8:06:39 PDT"]
[Termination "Mikhail_Golubev won on time"]

1. d4 {[%clk 0:02:57.5]} 1... Nf6 {[%clk 0:02:59.1]} 2. Nc3 {[%clk 0:02:57.4]}
2... e6 {[%clk 0:02:57.6]} 3. Bg5 {[%clk 0:02:57.7]} 3... Bb4 {[%clk 0:02:51.8]}
4. Qd3 {[%clk 0:02:51.8]} 4... h6 {[%clk 0:02:36.1]} 5. Bxf6 {[%clk 0:02:28]}
5... Qxf6 {[%clk 0:02:37]} 6. e4 {[%clk 0:02:28.4]} 6... d5 {[%clk 0:02:27.6]}
7. e5 {[%clk 0:02:28.2]} 7... Qe7 {[%clk 0:02:11.6]} 8. a3 {[%clk 0:02:27.9]}
8... Ba5 {[%clk 0:02:00.3]} 9. Qg3 {[%clk 0:02:17.8]} 9... O-O {[%clk
0:01:54.2]} 10. h4 {[%clk 0:01:48.5]} 10... a6 {[%clk 0:01:48.2]} 11. b4 {[%clk
0:01:42.2]} 11... Bb6 {[%clk 0:01:46.3]} 12. Nf3 {[%clk 0:01:40]} 12... a5
{[%clk 0:01:41.7]} 13. b5 {[%clk 0:01:19.3]} 13... a4 {[%clk 0:01:32.8]} 14. h5
{[%clk 0:01:12.9]} 14... c5 {[%clk 0:01:26.3]} 15. Rh4 {[%clk 0:00:50.5]} 15...
Ba5 {[%clk 0:01:17.1]} 16. Kd2 {[%clk 0:00:46.8]} 16... Nd7 {[%clk 0:00:50.1]}
17. Rg4 {[%clk 0:00:46.2]} 17... f5 {[%clk 0:00:44.9]} 18. Rg6 {[%clk
0:00:29.9]} 18... cxd4 {[%clk 0:00:28.9]} 19. Nxd4 {[%clk 0:00:28.9]} 19... f4
{[%clk 0:00:27.7]} 20. Rxg7+ {[%clk 0:00:09.7]} 20... Qxg7 {[%clk 0:00:27]} 21.
Qxg7+ {[%clk 0:00:10.6]} 21... Kxg7 {[%clk 0:00:27.5]} 22. Nxe6+ {[%clk
0:00:11.5]} 22... Kf7 {[%clk 0:00:24]} 23. Nxf8 {[%clk 0:00:12.4]} 23... Nxf8
{[%clk 0:00:21.2]} 0-1

[Event "Early-Titled-Tuesday-Blitz-July-09-2024"]
[Site "Chess.com"]
[Date "2024.07.09"]
[Round "1"]
[White "vladislavkovalev"]
[Black "ACollins05"]
[Result "1-0"]
[WhiteElo "2905"]
[BlackElo "2490"]
[TimeControl "180+1"]
[EndTime "8:06:40 PDT"]
[Termination "vladislavkovalev won by resignation"]

1. e4 {[%clk 0:03:00.3]} 1... a6 {[%clk 0:02:53.3]} 2. d4 {[%clk 0:02:59]} 2...
b5 {[%clk 0:02:52.9]} 3. Bd3 {[%clk 0:02:58.9]} 3... Bb7 {[%clk 0:02:51.2]} 4.
Qe2 {[%clk 0:02:58.9]} 4... e6 {[%clk 0:02:40.5]} 5. a4 {[%clk 0:02:58.9]} 5...
b4 {[%clk 0:02:39.9]} 6. Nf3 {[%clk 0:02:58.7]} 6... Nf6 {[%clk 0:02:38]} 7. O-O
{[%clk 0:02:56.8]} 7... c5 {[%clk 0:02:38.5]} 8. d5 {[%clk 0:02:56.1]} 8... d6
{[%clk 0:02:33.2]} 9. dxe6 {[%clk 0:02:50]} 9... fxe6 {[%clk 0:02:31.7]} 10. e5
{[%clk 0:02:50.6]} 10... dxe5 {[%clk 0:02:29.6]} 11. Qxe5 {[%clk 0:02:44.6]}
11... Qd5 {[%clk 0:02:23.5]} 12. Re1 {[%clk 0:02:40.9]} 12... Qxe5 {[%clk
0:02:18.9]} 13. Nxe5 {[%clk 0:02:41.8]} 13... Be7 {[%clk 0:02:10.5]} 14. Nd2
{[%clk 0:02:41.2]} 14... O-O {[%clk 0:02:03.4]} 15. Ndc4 {[%clk 0:02:39.8]}
15... Re8 {[%clk 0:01:57.3]} 16. Bf4 {[%clk 0:02:24]} 16... Bf8 {[%clk
0:01:47.8]} 17. Nb6 {[%clk 0:02:04.3]} 17... Ra7 {[%clk 0:01:44.8]} 18. a5
{[%clk 0:01:59.4]} 18... Nd5 {[%clk 0:01:34.3]} 19. Bg3 {[%clk 0:01:49.8]} 19...
Nxb6 {[%clk 0:01:23]} 20. axb6 {[%clk 0:01:50.7]} 20... Ra8 {[%clk 0:01:23.2]}
21. Nc4 {[%clk 0:01:46]} 21... Nc6 {[%clk 0:01:14.2]} 22. Bc7 {[%clk 0:01:38.5]}
22... a5 {[%clk 0:01:08.7]} 23. Be4 {[%clk 0:01:37.6]} 23... a4 {[%clk
0:01:03.1]} 24. Ne5 {[%clk 0:01:17.6]} 24... Na5 {[%clk 0:00:56.3]} 25. Rxa4
{[%clk 0:01:17.3]} 25... Bxe4 {[%clk 0:00:46.7]} 26. Rxe4 {[%clk 0:01:18.2]}
26... Nb7 {[%clk 0:00:42.4]} 27. Rxa8 {[%clk 0:01:17.1]} 27... Rxa8 {[%clk
0:00:43.3]} 28. g4 {[%clk 0:01:14.7]} 28... Ra2 {[%clk 0:00:37.2]} 29. Nc4
{[%clk 0:01:14]} 29... Kf7 {[%clk 0:00:29.1]} 30. Kf1 {[%clk 0:01:14.1]} 30...
Ra1+ {[%clk 0:00:25.1]} 31. Re1 {[%clk 0:01:13.4]} 31... Ra2 {[%clk 0:00:20.9]}
32. Ke2 {[%clk 0:01:13.6]} 32... Be7 {[%clk 0:00:20.4]} 33. Kd3 {[%clk
0:01:13.6]} 33... Bf6 {[%clk 0:00:20.8]} 34. Nd6+ {[%clk 0:01:08.6]} 34... Nxd6
{[%clk 0:00:12.4]} 35. Bxd6 {[%clk 0:01:09.5]} 35... Ra6 {[%clk 0:00:09.6]} 36.
Bc7 {[%clk 0:01:09.3]} 36... c4+ {[%clk 0:00:05.1]} 37. Kxc4 {[%clk 0:01:08.8]}
37... b3 {[%clk 0:00:05.2]} 38. cxb3 {[%clk 0:01:08.2]} 38... Ra5 {[%clk
0:00:05.6]} 39. b4 {[%clk 0:01:08]} 1-0

[Event "Early-Titled-Tuesday-Blitz-July-09-2024"]
[Site "Chess.com"]
[Date "2024.07.09"]
[Round "1"]
[White "eltenedor"]
[Black "HajiyevKanan"]
[Result "0-1"]
[WhiteElo "2145"]
[BlackElo "2569"]
[TimeControl "180+1"]
[EndTime "8:06:40 PDT"]
[Termination "HajiyevKanan won on time"]

1. f4 {[%clk 0:02:57]} 1... b6 {[%clk 0:02:56.6]} 2. b3 {[%clk 0:02:51.4]} 2...
Bb7 {[%clk 0:02:57]} 3. Bb2 {[%clk 0:02:50.6]} 3... Nf6 {[%clk 0:02:57.5]} 4. e3
{[%clk 0:02:46.1]} 4... g6 {[%clk 0:02:57.4]} 5. Nf3 {[%clk 0:02:43.1]} 5... Bg7
{[%clk 0:02:57.4]} 6. Be2 {[%clk 0:02:41.4]} 6... c5 {[%clk 0:02:57.8]} 7. O-O
{[%clk 0:02:40.6]} 7... d6 {[%clk 0:02:57.4]} 8. Bb5+ {[%clk 0:02:27.3]} 8...
Nc6 {[%clk 0:02:53.4]} 9. Qe2 {[%clk 0:02:26.2]} 9... a6 {[%clk 0:02:52.1]} 10.
Bc4 {[%clk 0:02:14.2]} 10... b5 {[%clk 0:02:49.1]} 11. Bd3 {[%clk 0:02:13.3]}
11... O-O {[%clk 0:02:48]} 12. a3 {[%clk 0:02:09.4]} 12... d5 {[%clk 0:02:45.6]}
13. Ne5 {[%clk 0:01:53.3]} 13... c4 {[%clk 0:02:41.8]} 14. bxc4 {[%clk
0:01:49.5]} 14... bxc4 {[%clk 0:02:30.9]} 15. Nxc4 {[%clk 0:01:45]} 15... dxc4
{[%clk 0:02:29.7]} 16. Bxc4 {[%clk 0:01:45.7]} 16... Rb8 {[%clk 0:02:16.8]} 17.
Bc3 {[%clk 0:01:33]} 17... Qb6 {[%clk 0:02:09]} 18. a4 {[%clk 0:01:28.4]} 18...
Na5 {[%clk 0:02:00.7]} 19. Bd3 {[%clk 0:01:08.7]} 19... Rfc8 {[%clk 0:01:53.3]}
20. Na3 {[%clk 0:01:06.6]} 20... Qc7 {[%clk 0:01:47.2]} 21. Be5 {[%clk
0:01:00.5]} 21... Qc5 {[%clk 0:01:41.3]} 22. Bxb8 {[%clk 0:00:48.3]} 22... Rxb8
{[%clk 0:01:42.2]} 23. Nc4 {[%clk 0:00:42.7]} 23... Nxc4 {[%clk 0:01:37.6]} 24.
Bxc4 {[%clk 0:00:42.3]} 24... a5 {[%clk 0:01:37.5]} 25. Rab1 {[%clk 0:00:40.4]}
25... Qc7 {[%clk 0:01:37.4]} 26. Rb5 {[%clk 0:00:34.1]} 26... Bc6 {[%clk
0:01:33.6]} 27. Rxb8+ {[%clk 0:00:22.8]} 27... Qxb8 {[%clk 0:01:34.5]} 28. Bb5
{[%clk 0:00:22.3]} 28... Be4 {[%clk 0:01:32.7]} 29. d3 {[%clk 0:00:20.4]} 29...
Ba8 {[%clk 0:01:33.2]} 30. e4 {[%clk 0:00:20.2]} 30... h5 {[%clk 0:01:31.9]} 31.
Rb1 {[%clk 0:00:18.6]} 31... Ng4 {[%clk 0:01:31.3]} 32. Qe1 {[%clk 0:00:12.8]}
32... Qb6+ {[%clk 0:01:29]} 33. Kf1 {[%clk 0:00:07.8]} 33... Ne3+ {[%clk
0:01:24.3]} 34. Ke2 {[%clk 0:00:06.4]} 34... Nxc2 {[%clk 0:01:25]} 35. Qc1
{[%clk 0:00:05.5]} 35... Nd4+ {[%clk 0:01:21.6]} 36. Ke1 {[%clk 0:00:05.5]}
36... Qd8 {[%clk 0:01:16.8]} 37. Qd2 {[%clk 0:00:03.6]} 37... f5 {[%clk
0:01:08.5]} 38. exf5 {[%clk 0:00:02.8]} 38... Nxf5 {[%clk 0:01:07.7]} 39. g3
{[%clk 0:00:01.3]} 39... Bd4 {[%clk 0:01:07.6]} 40. Rc1 {[%clk 0:00:01]} 40...
Be3 {[%clk 0:01:07.3]} 0-1

[Event "Early-Titled-Tuesday-Blitz-July-09-2024"]
[Site "Chess.com"]
[Date "2024.07.09"]
[Round "1"]
[White "boguszp"]
[Black "Naruto75_3"]
[Result "0-1"]
[WhiteElo "1954"]
[BlackElo "2547"]
[TimeControl "180+1"]
[EndTime "8:06:40 PDT"]
[Termination "Naruto75_3 won by checkmate"]

1. d4 {[%clk 0:02:57.8]} 1... d5 {[%clk 0:02:59.6]} 2. Nf3 {[%clk 0:02:57.8]}
2... Nf6 {[%clk 0:02:58.8]} 3. c4 {[%clk 0:02:57.7]} 3... c6 {[%clk 0:02:58.6]}
4. Nc3 {[%clk 0:02:56.4]} 4... e6 {[%clk 0:02:58.6]} 5. Bg5 {[%clk 0:02:54.9]}
5... dxc4 {[%clk 0:02:58.5]} 6. e3 {[%clk 0:02:53.6]} 6... b5 {[%clk 0:02:58.1]}
7. a4 {[%clk 0:02:52.7]} 7... Bb4 {[%clk 0:02:57.9]} 8. Be2 {[%clk 0:02:46.8]}
8... O-O {[%clk 0:02:57.5]} 9. O-O {[%clk 0:02:46.4]} 9... Bxc3 {[%clk 0:02:51]}
10. bxc3 {[%clk 0:02:45.9]} 10... h6 {[%clk 0:02:51]} 11. Bh4 {[%clk 0:02:45.1]}
11... Nbd7 {[%clk 0:02:50]} 12. Ne5 {[%clk 0:02:43.4]} 12... Nxe5 {[%clk
0:02:45.2]} 13. dxe5 {[%clk 0:02:40]} 13... Qxd1 {[%clk 0:02:44.6]} 14. Rfxd1
{[%clk 0:02:37.1]} 14... Nd5 {[%clk 0:02:44.3]} 15. Bf3 {[%clk 0:02:29.3]} 15...
Bb7 {[%clk 0:02:31.6]} 16. Bxd5 {[%clk 0:02:17.6]} 16... cxd5 {[%clk 0:02:20.1]}
17. axb5 {[%clk 0:02:16.9]} 17... g5 {[%clk 0:02:17.7]} 18. Bg3 {[%clk
0:02:15.4]} 18... Rfb8 {[%clk 0:02:17.1]} 19. Ra5 {[%clk 0:02:09.3]} 19... a6
{[%clk 0:02:13.9]} 20. bxa6 {[%clk 0:02:02.1]} 20... Rxa6 {[%clk 0:02:12.9]} 21.
Rda1 {[%clk 0:01:59.5]} 21... Rxa5 {[%clk 0:02:11.3]} 22. Rxa5 {[%clk
0:01:57.4]} 22... Bc6 {[%clk 0:02:11.1]} 23. h4 {[%clk 0:01:50.7]} 23... Rb3
{[%clk 0:02:08.8]} 24. hxg5 {[%clk 0:01:41.4]} 24... hxg5 {[%clk 0:02:09.7]} 25.
Rc5 {[%clk 0:01:40]} 25... Ba4 {[%clk 0:02:04.9]} 26. e4 {[%clk 0:01:37.9]}
26... Rxc3 {[%clk 0:02:00.1]} 27. exd5 {[%clk 0:01:37.5]} 27... exd5 {[%clk
0:02:01]} 28. Rxd5 {[%clk 0:01:37.4]} 28... Rd3 {[%clk 0:01:58.2]} 29. Rc5
{[%clk 0:01:29.9]} 29... c3 {[%clk 0:01:58]} 30. Kf1 {[%clk 0:01:19.1]} 30... c2
{[%clk 0:01:52.3]} 31. Ke2 {[%clk 0:01:17.5]} 31... Rd1 {[%clk 0:01:52]} 32.
Rxc2 {[%clk 0:01:00.4]} 32... Bxc2 {[%clk 0:01:50.8]} 33. f4 {[%clk 0:00:59.6]}
33... gxf4 {[%clk 0:01:49.8]} 34. Bxf4 {[%clk 0:00:59.3]} 34... Rd4 {[%clk
0:01:50.4]} 35. g3 {[%clk 0:00:55.8]} 35... Bf5 {[%clk 0:01:46.9]} 36. Ke3
{[%clk 0:00:53.5]} 36... Rd3+ {[%clk 0:01:46.4]} 37. Ke2 {[%clk 0:00:53.5]}
37... Rb3 {[%clk 0:01:46.4]} 38. Kf2 {[%clk 0:00:50.2]} 38... Kg7 {[%clk
0:01:46.3]} 39. Kg2 {[%clk 0:00:47.8]} 39... Kg6 {[%clk 0:01:46.4]} 40. Kf2
{[%clk 0:00:46.9]} 40... Kh5 {[%clk 0:01:46.8]} 41. Kg2 {[%clk 0:00:42]} 41...
Kg4 {[%clk 0:01:47.1]} 42. Kf2 {[%clk 0:00:39.5]} 42... Be4 {[%clk 0:01:46.9]}
43. Ke2 {[%clk 0:00:28.8]} 43... Bd5 {[%clk 0:01:42.9]} 44. Kf2 {[%clk
0:00:26.8]} 44... Bc4 {[%clk 0:01:40.2]} 45. Kg2 {[%clk 0:00:26.3]} 45... Rb2+
{[%clk 0:01:39.5]} 46. Kg1 {[%clk 0:00:24.5]} 46... Kf3 {[%clk 0:01:38.9]} 47.
Kh1 {[%clk 0:00:18.4]} 47... Bd5 {[%clk 0:01:37.3]} 48. Kg1 {[%clk 0:00:17.4]}
48... Rb8 {[%clk 0:01:31.4]} 49. Kh2 {[%clk 0:00:14.6]} 49... Rh8+ {[%clk
0:01:27.7]} 50. Kg1 {[%clk 0:00:13.9]} 50... Ke2 {[%clk 0:01:28.2]} 51. e6
{[%clk 0:00:09.4]} 51... Rh1# {[%clk 0:01:27.7]} 0-1

[Event "Early-Titled-Tuesday-Blitz-July-09-2024"]
[Site "Chess.com"]
[Date "2024.07.09"]
[Round "1"]
[White "Feegus"]
[Black "ilovejokes555"]
[Result "1-0"]
[WhiteElo "2626"]
[BlackElo "2307"]
[TimeControl "180+1"]
[EndTime "8:06:41 PDT"]
[Termination "Feegus won by checkmate"]

1. d4 {[%clk 0:03:00.7]} 1... Nf6 {[%clk 0:02:59.1]} 2. c4 {[%clk 0:02:58.3]}
2... g6 {[%clk 0:02:58.9]} 3. Nf3 {[%clk 0:02:57.7]} 3... Bg7 {[%clk 0:02:58.6]}
4. g3 {[%clk 0:02:58.4]} 4... d6 {[%clk 0:02:58.6]} 5. Bg2 {[%clk 0:02:58.9]}
5... O-O {[%clk 0:02:59.1]} 6. O-O {[%clk 0:02:59.3]} 6... Nc6 {[%clk
0:02:58.8]} 7. Nc3 {[%clk 0:02:59.5]} 7... a6 {[%clk 0:02:58.4]} 8. Bf4 {[%clk
0:02:58.4]} 8... Rb8 {[%clk 0:02:46]} 9. c5 {[%clk 0:02:57.9]} 9... Re8 {[%clk
0:02:42.9]} 10. d5 {[%clk 0:02:48.4]} 10... Na5 {[%clk 0:02:34.3]} 11. Qa4
{[%clk 0:02:43.9]} 11... b6 {[%clk 0:02:26.6]} 12. cxb6 {[%clk 0:02:42.7]} 12...
cxb6 {[%clk 0:02:26.4]} 13. Nd4 {[%clk 0:02:42.3]} 13... b5 {[%clk 0:02:18.8]}
14. Qd1 {[%clk 0:02:41.3]} 14... Bd7 {[%clk 0:02:16.6]} 15. Nc6 {[%clk
0:02:40.8]} 15... Bxc6 {[%clk 0:02:11.1]} 16. dxc6 {[%clk 0:02:40.9]} 16... Rc8
{[%clk 0:02:10.5]} 17. Rc1 {[%clk 0:02:17]} 17... Qb6 {[%clk 0:01:38.6]} 18. Be3
{[%clk 0:02:11.7]} 18... Qb8 {[%clk 0:01:35.9]} 19. Nd5 {[%clk 0:01:48.7]} 19...
Nxd5 {[%clk 0:01:28.7]} 20. Qxd5 {[%clk 0:01:49]} 20... Bxb2 {[%clk 0:01:25.6]}
21. Rb1 {[%clk 0:01:48.6]} 21... Bf6 {[%clk 0:01:17.1]} 22. a4 {[%clk
0:01:48.6]} 22... Nxc6 {[%clk 0:01:14.6]} 23. axb5 {[%clk 0:01:48.5]} 23... axb5
{[%clk 0:01:14.5]} 24. Rxb5 {[%clk 0:01:48.8]} 24... Qa8 {[%clk 0:00:39.8]} 25.
Rb6 {[%clk 0:01:36.1]} 25... Ne5 {[%clk 0:00:33.5]} 26. Qxa8 {[%clk 0:01:33.5]}
26... Rxa8 {[%clk 0:00:33.6]} 27. Bxa8 {[%clk 0:01:34.4]} 27... Rxa8 {[%clk
0:00:33.6]} 28. Rc1 {[%clk 0:01:34.7]} 28... Kg7 {[%clk 0:00:33.2]} 29. Rb7
{[%clk 0:01:31.5]} 29... h5 {[%clk 0:00:32.6]} 30. h4 {[%clk 0:01:30.8]} 30...
Ng4 {[%clk 0:00:32]} 31. Bg5 {[%clk 0:01:30.4]} 31... Ra2 {[%clk 0:00:24.9]} 32.
Bxf6+ {[%clk 0:01:27.8]} 32... Kxf6 {[%clk 0:00:24.9]} 33. Kf1 {[%clk 0:01:14]}
33... Nh2+ {[%clk 0:00:24.2]} 34. Ke1 {[%clk 0:01:13.4]} 34... Ng4 {[%clk
0:00:22.9]} 35. f3 {[%clk 0:01:11.4]} 35... Ne3 {[%clk 0:00:22.3]} 36. Rcc7
{[%clk 0:01:10.1]} 36... Nf5 {[%clk 0:00:21.8]} 37. Kf2 {[%clk 0:01:07.4]} 37...
Ra4 {[%clk 0:00:19.4]} 38. e4 {[%clk 0:01:05.8]} 38... Nd4 {[%clk 0:00:19.3]}
39. Rxe7 {[%clk 0:01:04.2]} 39... Ra2+ {[%clk 0:00:19.5]} 40. Ke3 {[%clk
0:01:02.7]} 40... Nc2+ {[%clk 0:00:19.5]} 41. Kd3 {[%clk 0:01:01.4]} 41... Ne1+
{[%clk 0:00:19.7]} 42. Ke3 {[%clk 0:00:59.6]} 42... Nc2+ {[%clk 0:00:17.4]} 43.
Kf4 {[%clk 0:00:59.8]} 43... Nd4 {[%clk 0:00:15.4]} 44. Rxf7+ {[%clk 0:00:59.5]}
44... Ke6 {[%clk 0:00:15.2]} 45. Rbe7# {[%clk 0:01:00.1]} 1-0